Cogmind - Beta 14 @@@ ROGUE MODE // 2025.05.01 @ 23:38:24 Player: jumpy Result: Destroyed by L-31 Rogue with Katana Performance ------------- Evolutions (2) 1000 Regions Visited (4) 800 Robots Destroyed (60) 300 Value Destroyed (1492) 1492 Prototype IDs (1) 20 Alien Tech Used (0) 0 Bonus (36) 36 TOTAL SCORE: 3648 Bonus ------- High Alert Combat Kills 27 Follower Combat Kills 70 Friendly Fire -61 Cogmind --------- Core Integrity 0/550 Matter 222/300 Energy 100/100 System Corruption 0% Temperature Cool (18) Movement Core (50) Location -8/Materials Parts ------- > --- POWER (1) -------- (None) > --- PROPULSION (4) --- (None) > --- UTILITY (4) ------ Graphene Brace > --- WEAPON (2) ------- (None) > --- INVENTORY (5) ---- Ion Engine Light Deuterium Engine Heavy EM Pulse Gun Peak State ------------ > --- POWER ------------ Reinforced Deuterium Engine > --- PROPULSION ------- Wheel Wheel > --- UTILITY ---------- Graphene Brace > --- WEAPON ----------- Heavy Assault Cannon > --- INVENTORY -------- Ion Engine Light Deuterium Engine Heavy EM Pulse Gun Heavy Assault Cannon [Rating: 20] Favorites ----------- Power Ion Engine Engine Ion Engine Propulsion Light Treads Treads Light Treads Wheel Wheel Utility Small Storage Unit Device Seismic Detector Storage Small Storage Unit Processor Targeting Computer Weapon Assault Rifle Energy Gun Small Laser Ballistic Gun Assault Rifle Ballistic Cannon Heavy Assault Cannon Slashing Weapon Mining Claw Build | -11 -10 -9 -9 -8 ------- Run | Yrd Mat Mat Min Mat Slots Evolved 4 | . . 2 . 2 Power . | . . . . . Propulsion 2 | . . . . 2 Utility 2 | . . 2 . . Weapon . | . . . . . Parts Attached 41 | 9 10 15 2 5 Power 8 | 2 2 3 . 1 Engine 8 | 2 2 3 . 1 Core . | . . . . . Reactor . | . . . . . Propulsion 11 | 2 1 5 2 1 Treads 6 | 2 1 3 . . Leg . | . . . . . Wheel 5 | . . 2 2 1 Hover . | . . . . . Flight . | . . . . . Utility 6 | 2 . 3 . 1 Device 4 | 1 . 2 . 1 Storage 1 | 1 . . . . Processor 1 | . . 1 . . Hackware . | . . . . . Protection . | . . . . . Artifact . | . . . . . Weapon 16 | 3 7 4 . 2 Energy Gun 3 | 1 2 . . . Energy Cannon . | . . . . . Ballistic Gun 9 | 2 4 3 . . Ballistic Cannon 3 | . . 1 . 2 Launcher . | . . . . . Special Weapon . | . . . . . Impact Weapon . | . . . . . Slashing Weapon 1 | . 1 . . . Piercing Weapon . | . . . . . Special Melee Weapon . | . . . . . Unidentified Prototypes 1 | . . 1 . . Parts Lost 21 | . 4 9 . 8 Power 3 | . 1 1 . 1 Propulsion 6 | . . 3 . 3 Utility 5 | . . 3 . 2 Weapon 7 | . 3 2 . 2 Highest Loss Streak 5 | . 3 5 . 3 To Critical Strikes 1 | . . 1 . . Average Slot Usage (%) 79 | . 98 88 56 42 Engine 11 | . 13 10 11 8 Treads 16 | . 27 13 9 . Wheel 4 | . . 6 3 13 Device 10 | . 14 15 . 5 Storage 11 | . 14 11 11 3 Processor 6 | . . 10 11 3 Energy Gun 3 | . 1 8 . . Ballistic Gun 12 | . 25 10 . . Ballistic Cannon 3 | . . . 11 8 Peak Build Rating 20 | 7 8 15 12 20 Average Rating 10 | 5 7 12 11 14 On Entrance 7 | . 7 6 11 12 Naked Turns . | . . . . . Heaviest Build 28 | 15 15 22 22 28 Greatest Support 40 | 40 40 40 20 20 Greatest Overweight (x) 2 | . . 1 1 2 Average Overweight (x) . | . . . 1 1 Largest Inventory Capacity 8 | 8 8 8 8 8 Average Capacity 7 | 7 8 8 8 6 Most Carried 8 | 6 8 8 7 6 Average Carried 6 | 3 7 7 6 4 Final Capacity 8 | 8 8 8 8 5 Final Carried 7 | 6 7 6 6 3 Class Distribution -------------------- 82% | Mutant 17% | Scavenger-Mutant Dominant Class ---------------- Mutant | -10/Materials Scavenger-Mutant | -9/Materials Mutant | -9/Mines Mutant | -8/Materials Resources | -11 -10 -9 -9 -8 ----------- Run | Yrd Mat Mat Min Mat Matter Collected 1430 | 312 356 450 88 224 Remotely . | . . . . . Salvage Created 2041 | 132 457 1034 201 217 Parts 126 | 10 39 61 7 9 Haulers Intercepted 1 | . 1 . . . Recyclers Shooed . | . . . . . Parts Field Recycled . | . . . . . Retrieved Matter . | . . . . . Parts Self-Destructed . | . . . . . Prevented . | . . . . . Kills | -11 -10 -9 -9 -8 ------- Run | Yrd Mat Mat Min Mat Combat Hostiles Destroyed 39 | . 12 21 . 6 Guns 30 | . 12 18 . . Cannons 9 | . . 3 . 6 Classes Destroyed 13 | 2 5 4 . 2 Worker 7 | . . 4 3 . Builder 3 | . 3 . . . Tunneler 3 | 3 . . . . Hauler 1 | . 1 . . . Recycler 3 | 1 . . 2 . Watcher 4 | . 2 2 . . Swarmer 8 | . 8 . . . Grunt 21 | . 4 14 . 3 Brawler 1 | . . 1 . . Duelist 1 | . . 1 . . Sentry 5 | . . 5 . . Specialist 2 | . . . . 2 Heavy 1 | . . . . 1 Best Kill Streak 11 | 2 5 11 3 3 Combat Bots Only 10 | . 3 10 . 3 Max Kills in Single Turn 1 | 1 1 1 1 1 Gunslinging . | . . . . . Exploded . | . . . . . Melee . | . . . . . Uniques/NPCs Destroyed . | . . . . . Combat | -11 -10 -9 -9 -8 -------- Run | Yrd Mat Mat Min Mat Hostile Shots Fired 273 | . 73 103 . 97 Missed 63 | . 21 20 . 22 Damage Taken 3414 | . 812 1210 . 1392 Core 1063 | . 209 284 . 570 Absorbed by Shields . | . . . . . Core Remaining (%) 48 | 100 16 . 29 . Volleys Fired 187 | 12 50 81 7 37 Largest 2 | 2 2 2 1 1 Hottest 80 | 40 60 80 60 60 Shots Fired 312 | 24 95 149 7 37 Gun 262 | 24 95 143 . . Cannon 50 | . . 6 7 37 Launcher . | . . . . . Special . | . . . . . Kinetic 233 | 24 87 78 7 37 Thermal 79 | . 8 71 . . Explosive . | . . . . . Electromagnetic . | . . . . . Robot Hit Streak 23 | 4 10 23 16 3 Robot Miss Streak 3 | 2 3 3 1 3 Penetration Max . | . . . . . Secondary Targets 3 | . 2 1 . . Max Gunslinging Chain 1 | . 1 1 . . Shots Hit Robots 206 | 13 56 112 5 20 Core Hits 81 | 5 24 43 4 5 Critical Kills 1 | . . 1 . . Critical Parts Destroyed 2 | . 1 1 . . Critical Strikes 11 | . 1 6 3 1 Destroy 3 | . 1 2 . . Blast 8 | . . 4 3 1 Melee Attacks 6 | . 6 . . . Impact . | . . . . . Slashing 6 | . 6 . . . Piercing . | . . . . . Sneak Attacks . | . . . . . Combat Hostiles . | . . . . . Follow-up Attacks . | . . . . . Damage Inflicted 3976 | 182 733 1789 241 1031 Guns 2366 | 182 727 1457 . . Cannons 1599 | . . 332 241 1026 Explosions . | . . . . . Melee . | . . . . . Ramming 11 | . 6 . . 5 Kinetic 3335 | 182 672 1214 241 1026 Thermal 630 | . 55 575 . . Explosive . | . . . . . Electromagnetic . | . . . . . Impact . | . . . . . Slashing . | . . . . . Piercing . | . . . . . Highest Corruption 10 | . 5 10 10 . Average Corruption 7 | . 4 9 10 . Corruption Purged . | . . . . . Corruption Blocked . | . . . . . Effects 48 | . 18 4 26 . Message Errors 17 | . 7 1 9 . Matter Fused 9 | . 6 . 3 . Heat Flow Errors 4 | . 1 . 3 . Energy Discharges 8 | . 2 1 5 . Data Loss (minor) 8 | . 1 2 5 . Misfires 1 | . 1 . . . Alerts 1 | . . . 1 . Overload Shots . | . . . . . Overflow Damage 29 | . . . 19 10 Projectiles 29 | . . . 19 10 Explosions . | . . . . . Melee . | . . . . . Knockbacks 11 | . . 4 . 7 Impact . | . . . . . Kinetic 10 | . . 3 . 7 Secondary 1 | . . 1 . . Self-Inflicted Damage 1 | . . . . 1 Shots . | . . . . . Rammed 9 | . 5 . . 4 Targets Rammed 10 | . 6 . . 4 Kicked . | . . . . . Crushed 1 | . 1 . . . Highest Temperature 336 | . 280 228 240 336 Average Temperature 78 | . 90 51 63 111 Received Heat Transfer 1179 | . 225 441 . 513 Siege Activations . | . . . . . Robots Corrupted . | . . . . . Combat Hostiles . | . . . . . Parts Fried . | . . . . . Impact Corruptions . | . . . . . Robots Melted . | . . . . . Combat Hostiles . | . . . . . Parts Melted 1 | . . 1 . . Heat Transferred 1375 | . 125 1250 . . Parts Sabotaged . | . . . . . Parts Stolen . | . . . . . Parts Stripped . | . . . . . Power Chain Reactions . | . . . . . Alert | -11 -10 -9 -9 -8 ------- Run | Yrd Mat Mat Min Mat Peak Influence 456 | 20 224 456 205 187 Initial 177 | . 13 20 177 1 Average 125 | 8 99 211 126 67 Maximum Alert Level 2 | . 1 2 1 . Low Security (%) 81 | 100 88 51 91 100 Level 1 16 | . 11 40 8 . Level 2 2 | . . 7 . . Level 3 . | . . . . . Level 4 . | . . . . . Level 5 . | . . . . . High Security . | . . . . . Max Security . | . . . . . Squads Dispatched 5 | . . 3 . 2 Investigation . | . . . . . Extermination . | . . . . . Reinforcement 5 | . . 3 . 2 Assault . | . . . . . Garrison . | . . . . . Intercept . | . . . . . Searches Triggered . | . . . . . Construction Impeded . | . . . . . Haulers Reinforced . | . . . . . Active Scanning Responses . | . . . . . Cargo Convoy Interrupts . | . . . . . Stealth | -11 -10 -9 -9 -8 --------- Run | Yrd Mat Mat Min Mat Distress Signals 3 | . 1 1 . 1 Communications Jammed . | . . . . . Distress Signals . | . . . . . Times Spotted 69 | . 20 35 . 14 Peak Tracking Total 7 | . 3 7 . 4 Tactical Retreats 3 | . 1 2 . . Traps | -11 -10 -9 -9 -8 ------- Run | Yrd Mat Mat Min Mat Traps Triggered 2 | . 2 . . . Indirectly . | . . . . . Trap Hack Attempts . | . . . . . Triggered . | . . . . . Disarmed . | . . . . . Reprogrammed . | . . . . . Reused . | . . . . . Traps Extracted . | . . . . . Installed . | . . . . . Triggered . | . . . . . Machines | -11 -10 -9 -9 -8 ---------- Run | Yrd Mat Mat Min Mat Machines Disabled . | . . . . . Max in Single Turn . | . . . . . Machines Repaired . | . . . . . Machines Dismantled . | . . . . . Machines Sabotaged . | . . . . . Overloaded Fab Kills . | . . . . . Hacking | -11 -10 -9 -9 -8 --------- Run | Yrd Mat Mat Min Mat Machines Accessed 2 | . 2 . . . Terminals 2 | . 2 . . . Fabricators . | . . . . . Repair Stations . | . . . . . Recycling Units . | . . . . . Scanalyzers . | . . . . . Garrison Access . | . . . . . Total Hacks 4 | . 4 . . . Successful 1 | . 1 . . . Failed 2 | . 2 . . . Catastrophic . | . . . . . Database Lockouts 1 | . 1 . . . Manual 4 | . 4 . . . Terminals 4 | . 4 . . . Fabricators . | . . . . . Repair Stations . | . . . . . Recycling Units . | . . . . . Scanalyzers . | . . . . . Garrison Access . | . . . . . Terminal Hacks 1 | . 1 . . . Robot Analysis 1 | . 1 . . . Fabricator Hacks . | . . . . . Repair Station Hacks . | . . . . . Recycling Unit Hacks . | . . . . . Scanalyzer . | . . . . . Garrison Access Hacks . | . . . . . Unauthorized Hacks . | . . . . . Terminals . | . . . . . Fabricators . | . . . . . Repair Stations . | . . . . . Recycling Units . | . . . . . Scanalyzers . | . . . . . Garrison Access . | . . . . . Data Cores Recovered . | . . . . . Used . | . . . . . Hacking Detections 2 | . 2 . . . Full Trace Events . | . . . . . Feedback Events . | . . . . . Feedback Blocked . | . . . . . Robot Schematics Acquired . | . . . . . Robots Built . | . . . . . Authchips . | . . . . . Time . | . . . . . Total Robot Build Rating . | . . . . . Part Schematics Acquired . | . . . . . Parts Built . | . . . . . Authchips . | . . . . . Time . | . . . . . Total Part Build Rating . | . . . . . Parts Repaired . | . . . . . Time . | . . . . . Parts Recycled . | . . . . . Recycled Matter . | . . . . . Retrieved Matter . | . . . . . Retrieved Components . | . . . . . Parts Scanalyzed . | . . . . . Part Schematics Acquired . | . . . . . Parts Damaged . | . . . . . Bothacking | -11 -10 -9 -9 -8 ------------ Run | Yrd Mat Mat Min Mat Used RIF Installer . | . . . . . Robots Hacked . | . . . . . Non-combat . | . . . . . Combat . | . . . . . Robot Hacks Applied . | . . . . . Relay Couplers Released . | . . . . . Fabnet Peak Effective % . | . . . . . Robots Rewired . | . . . . . Allies Hacked . | . . . . . Hacks Repelled . | . . . . . Allies | -11 -10 -9 -9 -8 -------- Run | Yrd Mat Mat Min Mat Total Allies 1 | . . . 1 . Largest Group 1 | . . . 1 1 Highest-Rated Group 31 | . . . 31 31 Highest-Rated Ally 31 | . . . 31 31 Total Orders . | . . . . . Ally Attacks 12 | . . . . 12 Total Damage 230 | . . . . 230 Kills 2 | . . . . 2 Allies Corrupted . | . . . . . Allies Melted . | . . . . . Intel | -11 -10 -9 -9 -8 ------- Run | Yrd Mat Mat Min Mat Robot Analysis Total 1 | . 1 . . . Derelict Logs Recovered 1 | . . . 1 . Drone Launches . | . . . . . Drone Recoveries . | . . . . . Exploration | -11 -10 -9 -9 -8 ------------- Run | Yrd Mat Mat Min Mat Turns Passed 2653 | 205 898 712 594 244 Spaces Moved 1245 | 99 424 304 294 124 Core 10 | 6 . 4 . . Treads 887 | 93 424 172 198 . Legs . | . . . . . Wheels 348 | . . 128 96 124 Hover . | . . . . . Flight . | . . . . . Fastest Speed 50 | 50 160 90 95 95 Average Speed 154 | 153 160 133 192 96 Slowest Speed 240 | 160 160 240 240 110 Overloaded Moves . | . . . . . Propulsion Burnouts . | . . . . . Robots Hopped . | . . . . . Cave-ins Triggered 1 | . 1 . . . Exploration Rate (%) 31 | 6 59 32 52 10 Regions Visited 4 Branch Regions 1 Pre-discovered Areas . | . . . . . Known Exits Taken . | . . . . . Unknown Exits Taken 4 | 1 1 1 1 . Scrap Searched 1 | . . . 1 . Spaces Dug 4 | . 4 . . . Terrain Destroyed 31 | . 4 . 4 23 Melee 4 | . 4 . . . Projectile 27 | . . . 4 23 AOE . | . . . . . Terrain Rammed . | . . . . . Walls Destroyed . | . . . . . Machines Disabled . | . . . . . Actions | -11 -10 -9 -9 -8 --------- Run | Yrd Mat Mat Min Mat Total 1619 | 124 534 459 311 191 Wait 97 | . 30 43 7 17 Move 1241 | 98 423 303 293 124 Hop . | . . . . . Pick Up 23 | 5 5 11 1 1 Fast Attach 15 | 7 4 2 . 2 Attach 15 | . 2 9 2 2 Detach 1 | . . . 1 . Swap 11 | 2 4 4 . 1 Drop 13 | . 4 6 . 3 Fire 187 | 12 50 81 7 37 Melee 6 | . 6 . . . Ram 4 | . . . . 4 Kick . | . . . . . Crush 6 | . 6 . . . Escape Stasis . | . . . . . Rewire . | . . . . . Trap . | . . . . . Miscellaneous . | . . . . . Route ------- -11/Scrapyard -10/Materials (discovered 2 exits: [*Mat] / [*Min]) -9/Materials -9/Mines -8/Materials (discovered 1 exit: Fac) History --------- Turn | Location | Event 44 | -11/Scrapyard | Discovered new exit (range 15) 206 | -11/Scrapyard | Entered Materials 302 | -10/Materials | Build established: Mutant 367 | -10/Materials | Crushed by falling debris 367 | -10/Materials | Core integrity fell below 50% 656 | -10/Materials | Discovered new exit (range 4) 813 | -10/Materials | Discovered new exit (range 12) 816 | -10/Materials | Central database locked down 1060 | -10/Materials | Core integrity fell below 20% 1087 | -10/Materials | Lost 3 parts (1p2w) 1104 | -10/Materials | Entered another Materials area 1104 | -9/Materials | Evolved 2 slots: Utility x2 1274 | -9/Materials | Lost 3 parts (2n1u) 1423 | -9/Materials | Discovered new exit (range 10) 1724 | -9/Materials | Core integrity fell below 50% 1740 | -9/Materials | System corruption reached 10% 1784 | -9/Materials | Lost 5 parts (1p1n1u2w) 1791 | -9/Materials | Destroyed 10 combat bots 1816 | -9/Materials | Entered Mines 1875 | -9/Mines | Met a Derelict bent on vengeance 1929 | -9/Mines | Learned 8 Materials zone layouts 2319 | -9/Mines | Received a Mining Laser from a helpful Derelict 2356 | -9/Mines | Discovered new exit (range 9) 2410 | -9/Mines | Entered Materials 2410 | -8/Materials | Accompanied by 1 ally 2410 | -8/Materials | Evolved 2 slots: Propulsion x2 2411 | -8/Materials | Identified exit to Factory 2544 | -8/Materials | Lost 3 parts (1n2u) 2645 | -8/Materials | Core integrity fell below 50% 2650 | -8/Materials | Core integrity fell below 20% 2654 | -8/Materials | Destroyed by L-31 Rogue with Katana Last Messages --------------- 02622_ Dropped Hvy. Assault Cannon. 02622_ Acquired Hvy. Assault Cannon. 02624_ K-01 Serf collects debris. 02626_ R-06 Scavenger collects Pulse Rifle. 02627_ Acquired 12 matter. 02628_ Acquired 7 matter. 02629_ K-01 Serf collects debris. 02633_ R-06 Scavenger collects Imp. Hover Unit. 02634_ Slug penetrates L-31 Rogue. 02634_ L-31 Rogue knocked back. 02636_ Hvy. Assault Cannon destroyed. 02637_ Slammed into L-31 Rogue. 02637_ Destabilizing: Core damaged (-27). 02638_ Acquired 6 matter. 02640_ Wheel destroyed. 02640_ Slammed into W-25 Informer. 02644_ Rnf. Deuterium Engine destroyed. 02647_ R-06 Scavenger collects Imp. Signal Interpreter. 02650_ K-01 Serf collects debris. 02651_ R-06 Scavenger collects Lgt. Nuclear Core. Map ----- +----------------------------------------------------+ | ?????????????????????????????????????????? | | ?????????????????????????????????????????? | | ?????????????????????????????????????????? | | ?????????????????????????????????????????? | | ???????????????# #????????????#+#######+## | | ???????????????# #????????????# #?# | | ???????????????# ############## #?# """ "" | | ???????????????# + # #?# """ "" | | ???????????????# #### # #?# """ "" | | ???????????????# #??# """"" # ### | | ???????????????# #??# """"" # + | | ???????????????# #??# """"" # ### | | ???????????????# #??# # #?# | | ?????########### #??# + #?######## | | ?????# """T""" # #??# # #???###### | | ?????# # #######+###### ##### | | ?????# """ """ # | | ?????# """ """ + T | | ?????# """ """ # | | ?????# ### ################## | | ?????# #?# #????############## # | | ?????# #?# #????# # # | | ?########+######## ##???# "" """ # # | | ?# # #####;;# ;#???# "G """ + # | | ?# + = gg;#???# "" """ # # | | ?# # @ ;#???# # # | | ?# # ! l ;#???############## # | | ?# # * % ####################+## | | ?# # % k# ## # | | ?####+### a # ## # | | ?# # ### ! + ## # """ """ | | ??# " r ##+#####/#### # """ """ | | ???#" % * # # #??# # """ """ | | ???##% % ! " " # #??# # | | ????# ####;; ;### """ # #### # | | ????# #??###!; ## """ # + # | | ????# #????# #### # ##+########## ### | | ????# #????# ##?# # ## #??# ###?? | | ????# #????# "#?##+##### ## #??# #???? | | ????# #???## ##### ###?# ## #########? | | ????# #???#" ###* ### ## ## #? | | ????# #???#"%##%=% # """ ## """ #? | | ????# #???#" * " """ ## """ #? | | ?####+#####" ### % # """ ## """ ## | | ?# #"%#?# % ###+######## # | | ?# """ + #?####### ## """ # | | ?# """ ## #???????# """ """ ## """ + | | ?# """ ## ######### """ """ ## """ # | | ?# ## + """ """ ## # | | ?# """ ##### ###### ## """ # | +----------------------------------------------------+ Best States ------------- Heat Dissipation 31 Energy Generation 16 Energy Capacity 290 Matter Stores 300 Matter Capacity 300 Sight Range 16 Terrain Scan Range 16 Terrain Scan Density 10 Evasion (%) 42 Targeting Accuracy 5 Recoil Reduction 2 Item Schematics ----------------- None Robot Schematics ------------------ None Fabricated ------------ Nothing Alien Tech Used ----------------- None Achievements -------------- None Challenges ------------ None Game ------ Seed ThermalAblativeAutobeam Manual? 0 Play Time 00:19:25 Cumulative 69.3 hours Start 2025.05.01 @ 23:21:08 End 2025.05.01 @ 23:38:24 Sessions 1 Manual Loads 0 Difficulty Rogue Special Mode None Game No. 192 Rogue 192 Adventurer 0 Explorer 0 Win Type - Total 0 Types 0/0/0/0/0/0/0/0/0 Lore% 20 Gallery% 43 Achievement% 33 Wizard Run 0 Options --------- Layout 0 ASCII 0 Keyboard 0 Movement Numpad Keybinds 0 Fullscreen 2 Font 18/Terminus Map View 76x50 Zoom Use 0% Tactical HUD 1 Map Filters NONE Filters NONE Steam 1 RUN: c2d943a9-4c2f-406a-b557-c8f9c7b29426